[Event "Titled Tuesday Blitz May 9 Late 2023"]
[White "Rangel, Daniel"]
[Black "Thomforde-Toates, Noah"]
[WhiteFideId "2124475"]
[BlackFideId "30951992"]
[WhiteElo "2256"]
[BlackElo "2703"]
[Result "0-1"]
[Round "01"]
[TimeControl "180+2"]
[Date "2023.05.09"]
[WhiteClock "0:00:00"]
[BlackClock "0:00:07"]

1. c4 {[%clk 0:02:59]}  Nf6 {[%clk 0:02:59]} 2. g3 {[%clk 0:03:00]}  g6 {[%clk 0:02:59]} 3. Bg2 {[%clk 0:02:58]}  Bg7 {[%clk 0:03:00]} 4. Nc3 {[%clk 0:02:59]}  d6 {[%clk 0:02:59]} 5. e4 {[%clk 0:02:59]}  e5 {[%clk 0:02:57]} 6. Nge2 {[%clk 0:02:59]}  Nc6 {[%clk 0:02:56]} 7. O-O {[%clk 0:02:59]}  h5 {[%clk 0:02:56]} 8. h3 {[%clk 0:02:57]}  Nd4 {[%clk 0:02:47]} 9. Nxd4 {[%clk 0:02:51]}  exd4 {[%clk 0:02:47]} 10. Ne2 {[%clk 0:02:44]}  c5 {[%clk 0:02:41]} 11. d3 {[%clk 0:02:44]}  Be6 {[%clk 0:02:41]} 12. Bg5 {[%clk 0:02:42]}  Qd7 {[%clk 0:02:40]} 13. Nf4 {[%clk 0:02:40]}  O-O-O {[%clk 0:02:37]} 14. b4 {[%clk 0:02:40]}  Rdf8 {[%clk 0:02:36]} 15. bxc5 {[%clk 0:02:29]}  dxc5 {[%clk 0:02:37]} 16. Rb1 {[%clk 0:02:21]}  Nh7 {[%clk 0:02:36]} 17. Nxe6 {[%clk 0:02:20]}  fxe6 {[%clk 0:02:34]} 18. Bd2 {[%clk 0:02:19]}  e5 {[%clk 0:02:33]} 19. h4 {[%clk 0:02:11]}  Bf6 {[%clk 0:02:30]} 20. Kh2 {[%clk 0:02:08]}  Kb8 {[%clk 0:02:25]} 21. Bh3 {[%clk 0:01:50]}  Qe7 {[%clk 0:02:22]} 22. Rb5 {[%clk 0:01:45]}  g5 {[%clk 0:02:20]} 23. hxg5 {[%clk 0:01:38]}  Nxg5 {[%clk 0:02:18]} 24. Bxg5 {[%clk 0:01:37]}  Bxg5 {[%clk 0:02:17]} 25. Bf5 {[%clk 0:01:35]}  h4 {[%clk 0:02:14]} 26. g4 {[%clk 0:01:35]}  h3 {[%clk 0:02:14]} 27. Qb3 {[%clk 0:01:32]}  Bf4+ {[%clk 0:02:14]} 28. Kh1 {[%clk 0:01:32]}  h2 {[%clk 0:02:00]} 29. Rb1 {[%clk 0:01:28]}  Rf7 {[%clk 0:02:00]} 30. Be6 {[%clk 0:01:22]}  Rhh7 {[%clk 0:01:28]} 31. Bd5 {[%clk 0:01:14]}  Rhg7 {[%clk 0:00:56]} 32. Qa4 {[%clk 0:00:49]}  a6 {[%clk 0:00:25]} 33. Qxa6 {[%clk 0:00:43]}  Qd7 {[%clk 0:00:11]} 34. Rxb7+ {[%clk 0:00:32]}  Qxb7 {[%clk 0:00:11]} 35. Qd6+ {[%clk 0:00:27]}  Ka8 {[%clk 0:00:09]} 36. Rxb7 {[%clk 0:00:20]}  Rxb7 {[%clk 0:00:09]} 37. Qa6+ {[%clk 0:00:18]}  Kb8 {[%clk 0:00:09]} 38. Bxb7 {[%clk 0:00:18]}  Rxb7 {[%clk 0:00:08]} 39. Qd6+ {[%clk 0:00:18]}  Ka8 {[%clk 0:00:08]} 40. Qf8+ {[%clk 0:00:18]}  Rb8 {[%clk 0:00:08]} 41. Qxb8+ {[%clk 0:00:10]}  Kxb8 {[%clk 0:00:09]} 42. f3 {[%clk 0:00:10]}  Kb7 {[%clk 0:00:08]} 43. g5 {[%clk 0:00:10]}  Bxg5 {[%clk 0:00:08]} 44. Kxh2 {[%clk 0:00:11]}  Bf4+ {[%clk 0:00:09]} 45. Kh3 {[%clk 0:00:12]}  Kb6 {[%clk 0:00:10]} 46. Kg4 {[%clk 0:00:13]}  Ka5 {[%clk 0:00:11]} 47. Kf5 {[%clk 0:00:14]}  Kb4 {[%clk 0:00:11]} 48. Ke6 {[%clk 0:00:15]}  Ka3 {[%clk 0:00:12]} 49. Kd5 {[%clk 0:00:15]}  Kxa2 {[%clk 0:00:13]} 50. Kxc5 {[%clk 0:00:16]}  Kb3 {[%clk 0:00:14]} 51. Kd5 {[%clk 0:00:17]}  Kc3 {[%clk 0:00:14]} 52. c5 {[%clk 0:00:17]}  Bg5 {[%clk 0:00:13]} 53. c6 {[%clk 0:00:18]}  Bd8 {[%clk 0:00:13]} 54. Kxe5 {[%clk 0:00:18]}  Kxd3 {[%clk 0:00:14]} 55. f4 {[%clk 0:00:18]}  Kc4 {[%clk 0:00:14]} 56. f5 {[%clk 0:00:19]}  d3 {[%clk 0:00:14]} 57. f6 {[%clk 0:00:20]}  d2 {[%clk 0:00:14]} 58. f7 {[%clk 0:00:20]}  Bc7+ {[%clk 0:00:14]} 59. Ke6 {[%clk 0:00:19]}  d1=Q {[%clk 0:00:14]} 60. f8=Q {[%clk 0:00:20]}  Qg4+ {[%clk 0:00:14]} 61. Qf5 {[%clk 0:00:20]}  Qg8+ {[%clk 0:00:15]} 62. Kf6 {[%clk 0:00:18]}  Qf8+ {[%clk 0:00:14]} 63. Kg5 {[%clk 0:00:18]}  Qg7+ {[%clk 0:00:14]} 64. Kh4 {[%clk 0:00:17]}  Qg3+ {[%clk 0:00:15]} 65. Kh5 {[%clk 0:00:17]}  Kd4 {[%clk 0:00:15]} 66. Qd5+ {[%clk 0:00:16]}  Kc3 {[%clk 0:00:16]} 67. Qg5 {[%clk 0:00:16]}  Qh3+ {[%clk 0:00:15]} 68. Kg6 {[%clk 0:00:14]}  Kd4 {[%clk 0:00:13]} 69. Qd5+ {[%clk 0:00:13]}  Ke3 {[%clk 0:00:13]} 70. Qf5 {[%clk 0:00:11]}  Qh8 {[%clk 0:00:11]} 71. Kf7 {[%clk 0:00:08]}  Be5 {[%clk 0:00:09]} 72. Ke6 {[%clk 0:00:07]}  Qe8+ {[%clk 0:00:08]} 73. Kd5 {[%clk 0:00:06]}  Bf4 {[%clk 0:00:09]} 74. Qh3+ {[%clk 0:00:05]}  Kd2 {[%clk 0:00:08]} 75. Qg2+ {[%clk 0:00:05]}  Kd3 {[%clk 0:00:09]} 76. Qf3+ {[%clk 0:00:05]}  Be3 {[%clk 0:00:09]} 77. Qf5 {[%clk 0:00:04]}  Qg8+ {[%clk 0:00:07]} 78. Qe6 {[%clk 0:00:05]}  Qd8+ {[%clk 0:00:07]} 79. Qd6 {[%clk 0:00:05]}  Qa5+ {[%clk 0:00:07]} 80. Ke6+ {[%clk 0:00:05]}  Kxe4 {[%clk 0:00:07]} 81. c7 {[%clk 0:00:05]}  Qf5+ {[%clk 0:00:08]} 82. Ke7 {[%clk 0:00:06]}  Bc5 {[%clk 0:00:08]} 83. c8=Q {[%clk 0:00:04]}  Qxc8 {[%clk 0:00:07]} 84. Qxc5 {[%clk 0:00:04]}  Qxc5+ {[%clk 0:00:07]} 85. Kd7 {[%clk 0:00:04]}  Ke5 {[%clk 0:00:07]} 86. Ke8 {[%clk 0:00:00]}  Qa7 {[%clk 0:00:07]} 0-1


[Site "https://www.chess.com"]

[Event "Titled Tuesday Blitz May 9 Late 2023"]
[White "Bitoon, Richard"]
[Black "Dragomirescu, Calin"]
[WhiteFideId "5201110"]
[BlackFideId "1200895"]
[WhiteElo "2374"]
[BlackElo "2010"]
[Result "1-0"]
[Round "01"]
[TimeControl "180+2"]
[Date "2023.05.09"]
[WhiteClock "0:00:48"]
[BlackClock "0:01:19"]

1. e4 {[%clk 0:03:00]}  g6 {[%clk 0:02:59]} 2. d4 {[%clk 0:03:00]}  Bg7 {[%clk 0:03:00]} 3. Nc3 {[%clk 0:03:00]}  d6 {[%clk 0:03:01]} 4. Bc4 {[%clk 0:02:59]}  c6 {[%clk 0:03:00]} 5. a4 {[%clk 0:02:58]}  Nf6 {[%clk 0:03:00]} 6. Bg5 {[%clk 0:02:53]}  d5 {[%clk 0:02:59]} 7. Bxf6 {[%clk 0:02:51]}  exf6 {[%clk 0:02:57]} 8. exd5 {[%clk 0:02:52]}  O-O {[%clk 0:02:57]} 9. Nge2 {[%clk 0:02:51]}  Re8 {[%clk 0:02:56]} 10. O-O {[%clk 0:02:51]}  Bg4 {[%clk 0:02:55]} 11. f3 {[%clk 0:02:51]}  Bf5 {[%clk 0:02:54]} 12. Ng3 {[%clk 0:02:43]}  Bd7 {[%clk 0:02:53]} 13. Re1 {[%clk 0:02:31]}  f5 {[%clk 0:02:52]} 14. Rxe8+ {[%clk 0:02:30]}  Qxe8 {[%clk 0:02:52]} 15. Qd2 {[%clk 0:02:25]}  Qf8 {[%clk 0:02:49]} 16. Nce2 {[%clk 0:02:14]}  cxd5 {[%clk 0:02:45]} 17. Bxd5 {[%clk 0:02:14]}  Nc6 {[%clk 0:02:45]} 18. c3 {[%clk 0:02:14]}  a5 {[%clk 0:02:39]} 19. Re1 {[%clk 0:02:12]}  Re8 {[%clk 0:02:38]} 20. Bb3 {[%clk 0:02:10]}  h5 {[%clk 0:02:38]} 21. Nf1 {[%clk 0:01:43]}  Bh6 {[%clk 0:02:34]} 22. Qd1 {[%clk 0:01:43]}  Qe7 {[%clk 0:02:32]} 23. d5 {[%clk 0:01:35]}  Nd8 {[%clk 0:02:24]} 24. Kf2 {[%clk 0:01:28]}  b6 {[%clk 0:02:22]} 25. Nd4 {[%clk 0:01:24]}  Qc5 {[%clk 0:02:21]} 26. Rxe8+ {[%clk 0:01:23]}  Bxe8 {[%clk 0:02:21]} 27. g3 {[%clk 0:01:14]}  Nb7 {[%clk 0:02:20]} 28. Kg2 {[%clk 0:01:13]}  Qd6 {[%clk 0:02:13]} 29. Ne2 {[%clk 0:01:04]}  Nc5 {[%clk 0:02:11]} 30. Bc2 {[%clk 0:01:05]}  f4 {[%clk 0:02:03]} 31. Qd4 {[%clk 0:00:59]}  fxg3 {[%clk 0:02:00]} 32. hxg3 {[%clk 0:01:00]}  Bg7 {[%clk 0:01:59]} 33. Qd1 {[%clk 0:01:00]}  Bd7 {[%clk 0:01:54]} 34. Ne3 {[%clk 0:00:59]}  Bh6 {[%clk 0:01:51]} 35. Nc4 {[%clk 0:00:59]}  Qf6 {[%clk 0:01:50]} 36. Qd4 {[%clk 0:00:57]}  Qxd4 {[%clk 0:01:47]} 37. Nxd4 {[%clk 0:00:57]}  Bxa4 {[%clk 0:01:46]} 38. Nxb6 {[%clk 0:00:57]}  Bxc2 {[%clk 0:01:45]} 39. Nxc2 {[%clk 0:00:58]}  Bf8 {[%clk 0:01:41]} 40. b4 {[%clk 0:00:57]}  axb4 {[%clk 0:01:40]} 41. Nxb4 {[%clk 0:00:57]}  Kg7 {[%clk 0:01:37]} 42. Nc6 {[%clk 0:00:57]}  Nd3 {[%clk 0:01:35]} 43. Nd7 {[%clk 0:00:56]}  Bd6 {[%clk 0:01:33]} 44. c4 {[%clk 0:00:53]}  f5 {[%clk 0:01:34]} 45. Nd4 {[%clk 0:00:53]}  f4 {[%clk 0:01:28]} 46. c5 {[%clk 0:00:49]}  Nxc5 {[%clk 0:01:26]} 47. Nxc5 {[%clk 0:00:49]}  Bxc5 {[%clk 0:01:27]} 48. Ne6+ {[%clk 0:00:50]}  Kf6 {[%clk 0:01:26]} 49. Nxc5 {[%clk 0:00:51]}  Ke5 {[%clk 0:01:27]} 50. Nd3+ {[%clk 0:00:47]}  Kxd5 {[%clk 0:01:19]} 51. Nxf4+ {[%clk 0:00:48]} 1-0


[Site "https://www.chess.com"]

[Event "Titled Tuesday Blitz May 9 Late 2023"]
[White "Malicka, Maria"]
[Black "Kucuksari, Kaan"]
[WhiteFideId "1197576"]
[BlackFideId "6380166"]
[WhiteElo "2227"]
[BlackElo "2364"]
[Result "0-1"]
[Round "01"]
[TimeControl "180+2"]
[Date "2023.05.09"]
[WhiteClock "0:01:19"]
[BlackClock "0:00:09"]

1. e4 {[%clk 0:02:59]}  c5 {[%clk 0:03:00]} 2. Nf3 {[%clk 0:02:59]}  Nc6 {[%clk 0:03:00]} 3. d4 {[%clk 0:02:59]}  cxd4 {[%clk 0:03:01]} 4. Nxd4 {[%clk 0:03:00]}  e5 {[%clk 0:03:00]} 5. Nb5 {[%clk 0:02:59]}  d6 {[%clk 0:03:01]} 6. c4 {[%clk 0:02:58]}  a6 {[%clk 0:02:59]} 7. N5a3 {[%clk 0:02:58]}  f5 {[%clk 0:02:55]} 8. exf5 {[%clk 0:02:57]}  Nf6 {[%clk 0:02:55]} 9. Bd3 {[%clk 0:02:57]}  e4 {[%clk 0:02:55]} 10. Be2 {[%clk 0:02:57]}  Bxf5 {[%clk 0:02:53]} 11. Nc3 {[%clk 0:02:57]}  Be7 {[%clk 0:02:51]} 12. Nc2 {[%clk 0:02:58]}  O-O {[%clk 0:02:50]} 13. Bg5 {[%clk 0:02:57]}  Ne5 {[%clk 0:02:47]} 14. Ne3 {[%clk 0:02:57]}  Bg6 {[%clk 0:02:45]} 15. O-O {[%clk 0:02:54]}  Kh8 {[%clk 0:02:43]} 16. Qd4 {[%clk 0:02:53]}  Nc6 {[%clk 0:02:39]} 17. Qd2 {[%clk 0:02:51]}  h6 {[%clk 0:02:18]} 18. Bh4 {[%clk 0:02:50]}  Ne5 {[%clk 0:02:15]} 19. Rfd1 {[%clk 0:02:48]}  Nd3 {[%clk 0:02:14]} 20. b3 {[%clk 0:02:32]}  b5 {[%clk 0:01:44]} 21. Rab1 {[%clk 0:02:29]}  b4 {[%clk 0:01:24]} 22. Bxf6 {[%clk 0:02:26]}  bxc3 {[%clk 0:01:10]} 23. Bxc3 {[%clk 0:02:27]}  Rxf2 {[%clk 0:01:08]} 24. Ng4 {[%clk 0:02:13]}  Bg5 {[%clk 0:01:01]} 25. Qc2 {[%clk 0:02:00]}  Rf4 {[%clk 0:00:26]} 26. Rf1 {[%clk 0:01:57]}  Qb6+ {[%clk 0:00:24]} 27. Kh1 {[%clk 0:01:56]}  Raf8 {[%clk 0:00:22]} 28. Rxf4 {[%clk 0:01:55]}  Rxf4 {[%clk 0:00:23]} 29. Bd2 {[%clk 0:01:48]}  Rxg4 {[%clk 0:00:15]} 30. Rf1 {[%clk 0:01:48]}  Rf4 {[%clk 0:00:12]} 31. Bxf4 {[%clk 0:01:48]}  Nxf4 {[%clk 0:00:12]} 32. Bg4 {[%clk 0:01:47]}  e3 {[%clk 0:00:12]} 33. Qd1 {[%clk 0:01:45]}  Be4 {[%clk 0:00:11]} 34. Bf3 {[%clk 0:01:45]}  e2 {[%clk 0:00:11]} 35. Qe1 {[%clk 0:01:41]}  exf1=Q+ {[%clk 0:00:11]} 36. Qxf1 {[%clk 0:01:42]}  Bxf3 {[%clk 0:00:11]} 37. Qxf3 {[%clk 0:01:42]}  Qd4 {[%clk 0:00:12]} 38. h3 {[%clk 0:01:40]}  Bf6 {[%clk 0:00:11]} 39. Qg4 {[%clk 0:01:37]}  Qe5 {[%clk 0:00:09]} 40. Kg1 {[%clk 0:01:36]}  Qe1+ {[%clk 0:00:09]} 41. Kh2 {[%clk 0:01:37]}  Qe5 {[%clk 0:00:10]} 42. Kg1 {[%clk 0:01:36]}  Ne6 {[%clk 0:00:10]} 43. Qf3 {[%clk 0:01:36]}  Nc5 {[%clk 0:00:10]} 44. Kh1 {[%clk 0:01:35]}  Kh7 {[%clk 0:00:10]} 45. Qd1 {[%clk 0:01:33]}  Qe4 {[%clk 0:00:10]} 46. Kh2 {[%clk 0:01:32]}  Be5+ {[%clk 0:00:10]} 47. Kh1 {[%clk 0:01:33]}  Nd3 {[%clk 0:00:10]} 48. Qf1 {[%clk 0:01:32]}  Bd4 {[%clk 0:00:10]} 49. Kh2 {[%clk 0:01:31]}  Be5+ {[%clk 0:00:09]} 50. Kh1 {[%clk 0:01:30]}  Bg3 {[%clk 0:00:10]} 51. Kg1 {[%clk 0:01:27]}  Nf2 {[%clk 0:00:09]} 52. Qc1 {[%clk 0:01:24]}  Bf4 {[%clk 0:00:08]} 53. Qf1 {[%clk 0:01:19]}  Be3 {[%clk 0:00:07]} 54. Kh2 {[%clk 0:01:20]}  Qf4+ {[%clk 0:00:07]} 55. g3 {[%clk 0:01:19]}  Ng4+ {[%clk 0:00:07]} 56. Kg2 {[%clk 0:01:19]}  Qxf1+ {[%clk 0:00:08]} 57. Kxf1 {[%clk 0:01:20]}  Ne5 {[%clk 0:00:08]} 58. Ke2 {[%clk 0:01:20]}  Bc5 {[%clk 0:00:09]} 59. g4 {[%clk 0:01:19]}  Kg6 {[%clk 0:00:09]} 60. Kd2 {[%clk 0:01:18]}  Kg5 {[%clk 0:00:10]} 61. Kc2 {[%clk 0:01:18]}  Kh4 {[%clk 0:00:10]} 62. Kb2 {[%clk 0:01:19]}  Kxh3 {[%clk 0:00:10]} 63. a3 {[%clk 0:01:20]}  Kxg4 {[%clk 0:00:10]} 64. b4 {[%clk 0:01:21]}  Be3 {[%clk 0:00:10]} 65. Kc3 {[%clk 0:01:21]}  h5 {[%clk 0:00:09]} 66. a4 {[%clk 0:01:21]}  h4 {[%clk 0:00:09]} 67. b5 {[%clk 0:01:19]}  a5 {[%clk 0:00:09]} 0-1


[Site "https://www.chess.com"]

[Event "Titled Tuesday Blitz May 9 Late 2023"]
[White "Shapiro, Daniel"]
[Black "Averjanov, Alexey"]
[WhiteFideId "2001780"]
[BlackFideId "14109867"]
[WhiteElo "2361"]
[BlackElo "2689"]
[Result "0-1"]
[Round "01"]
[TimeControl "180+2"]
[Date "2023.05.09"]
[WhiteClock "0:00:50"]
[BlackClock "0:02:22"]

1. d4 {[%clk 0:02:59]}  d5 {[%clk 0:02:59]} 2. c4 {[%clk 0:02:58]}  dxc4 {[%clk 0:03:00]} 3. e4 {[%clk 0:02:58]}  Nf6 {[%clk 0:02:59]} 4. e5 {[%clk 0:02:57]}  Nd5 {[%clk 0:02:59]} 5. Bxc4 {[%clk 0:02:58]}  Nb6 {[%clk 0:02:59]} 6. Bd3 {[%clk 0:02:57]}  Nc6 {[%clk 0:02:59]} 7. Ne2 {[%clk 0:02:54]}  Nb4 {[%clk 0:02:59]} 8. Be4 {[%clk 0:02:53]}  N4d5 {[%clk 0:02:59]} 9. Nbc3 {[%clk 0:02:51]}  Be6 {[%clk 0:02:58]} 10. O-O {[%clk 0:02:48]}  c6 {[%clk 0:02:58]} 11. Be3 {[%clk 0:02:48]}  Qd7 {[%clk 0:02:57]} 12. Qc2 {[%clk 0:02:40]}  g6 {[%clk 0:02:56]} 13. Rad1 {[%clk 0:02:37]}  Bg7 {[%clk 0:02:55]} 14. Nf4 {[%clk 0:02:27]}  Nxf4 {[%clk 0:02:54]} 15. Bxf4 {[%clk 0:02:27]}  Nd5 {[%clk 0:02:54]} 16. Nxd5 {[%clk 0:02:13]}  Bxd5 {[%clk 0:02:54]} 17. Rfe1 {[%clk 0:02:08]}  O-O {[%clk 0:02:47]} 18. a3 {[%clk 0:02:08]}  Bxe4 {[%clk 0:02:46]} 19. Qxe4 {[%clk 0:02:04]}  Rad8 {[%clk 0:02:44]} 20. Rd3 {[%clk 0:01:58]}  Qd5 {[%clk 0:02:44]} 21. Qxd5 {[%clk 0:01:43]}  Rxd5 {[%clk 0:02:45]} 22. Red1 {[%clk 0:01:43]}  Rfd8 {[%clk 0:02:45]} 23. R3d2 {[%clk 0:01:43]}  f6 {[%clk 0:02:37]} 24. exf6 {[%clk 0:01:23]}  exf6 {[%clk 0:02:37]} 25. Be3 {[%clk 0:01:21]}  Kf7 {[%clk 0:02:36]} 26. f3 {[%clk 0:01:21]}  f5 {[%clk 0:02:34]} 27. g3 {[%clk 0:01:19]}  c5 {[%clk 0:02:30]} 28. dxc5 {[%clk 0:01:13]}  Rxd2 {[%clk 0:02:30]} 29. Rxd2 {[%clk 0:01:13]}  Rxd2 {[%clk 0:02:30]} 30. Bxd2 {[%clk 0:01:14]}  Bxb2 {[%clk 0:02:30]} 31. Bb4 {[%clk 0:01:07]}  Ke6 {[%clk 0:02:27]} 32. Kf2 {[%clk 0:01:05]}  Kd5 {[%clk 0:02:27]} 33. Ke3 {[%clk 0:01:04]}  Bd4+ {[%clk 0:02:27]} 34. Kf4 {[%clk 0:01:05]}  Bxc5 {[%clk 0:02:27]} 35. Kg5 {[%clk 0:01:00]}  Bxb4 {[%clk 0:02:24]} 36. axb4 {[%clk 0:01:01]}  b5 {[%clk 0:02:22]} 37. Kh6 {[%clk 0:01:02]}  a5 {[%clk 0:02:22]} 38. Kxh7 {[%clk 0:00:59]}  axb4 {[%clk 0:02:21]} 39. Kxg6 {[%clk 0:01:00]}  b3 {[%clk 0:02:21]} 40. h4 {[%clk 0:01:01]}  b2 {[%clk 0:02:21]} 41. h5 {[%clk 0:01:02]}  b1=Q {[%clk 0:02:22]} 42. h6 {[%clk 0:01:03]}  f4+ {[%clk 0:02:22]} 43. Kg7 {[%clk 0:00:50]}  fxg3 {[%clk 0:02:22]} 0-1


[Site "https://www.chess.com"]

[Event "Titled Tuesday Blitz May 9 Late 2023"]
[White "Maatman, Nick"]
[Black "Bashkansky, Ethan"]
[WhiteFideId "1040391"]
[BlackFideId "2071533"]
[WhiteElo "2671"]
[BlackElo "2350"]
[Result "1-0"]
[Round "01"]
[TimeControl "180+2"]
[Date "2023.05.09"]
[WhiteClock "0:01:22"]
[BlackClock "0:00:04"]

1. d4 {[%clk 0:02:55]}  f5 {[%clk 0:02:59]} 2. Nf3 {[%clk 0:02:51]}  Nf6 {[%clk 0:02:59]} 3. g3 {[%clk 0:02:51]}  g6 {[%clk 0:02:59]} 4. Bg2 {[%clk 0:02:52]}  Bg7 {[%clk 0:02:59]} 5. O-O {[%clk 0:02:52]}  O-O {[%clk 0:02:59]} 6. c4 {[%clk 0:02:53]}  d6 {[%clk 0:02:59]} 7. Nc3 {[%clk 0:02:53]}  Nc6 {[%clk 0:02:59]} 8. d5 {[%clk 0:02:46]}  Na5 {[%clk 0:02:57]} 9. Nd2 {[%clk 0:02:37]}  c5 {[%clk 0:02:55]} 10. Rb1 {[%clk 0:02:35]}  a6 {[%clk 0:02:52]} 11. a3 {[%clk 0:02:35]}  Qc7 {[%clk 0:02:40]} 12. Re1 {[%clk 0:02:29]}  Rb8 {[%clk 0:02:39]} 13. e4 {[%clk 0:02:21]}  fxe4 {[%clk 0:02:21]} 14. Ncxe4 {[%clk 0:02:22]}  b5 {[%clk 0:02:21]} 15. Nxf6+ {[%clk 0:02:20]}  exf6 {[%clk 0:02:12]} 16. cxb5 {[%clk 0:02:20]}  axb5 {[%clk 0:02:09]} 17. b4 {[%clk 0:02:20]}  Nb7 {[%clk 0:02:02]} 18. Ne4 {[%clk 0:02:08]}  Bf5 {[%clk 0:01:47]} 19. Bb2 {[%clk 0:02:07]}  Rbe8 {[%clk 0:01:36]} 20. Rc1 {[%clk 0:02:05]}  c4 {[%clk 0:01:35]} 21. Qd4 {[%clk 0:01:56]}  Bxe4 {[%clk 0:01:19]} 22. Bxe4 {[%clk 0:01:45]}  f5 {[%clk 0:01:07]} 23. Qxg7+ {[%clk 0:01:46]}  Qxg7 {[%clk 0:01:05]} 24. Bxg7 {[%clk 0:01:47]}  Kxg7 {[%clk 0:01:06]} 25. Bf3 {[%clk 0:01:48]}  Kf7 {[%clk 0:00:52]} 26. Kf1 {[%clk 0:01:47]}  Rxe1+ {[%clk 0:00:47]} 27. Kxe1 {[%clk 0:01:48]}  Ra8 {[%clk 0:00:47]} 28. Rc3 {[%clk 0:01:47]}  Nd8 {[%clk 0:00:46]} 29. Kd2 {[%clk 0:01:37]}  Kf6 {[%clk 0:00:47]} 30. Bd1 {[%clk 0:01:36]}  Nf7 {[%clk 0:00:46]} 31. f4 {[%clk 0:01:36]}  g5 {[%clk 0:00:44]} 32. Re3 {[%clk 0:01:35]}  gxf4 {[%clk 0:00:38]} 33. gxf4 {[%clk 0:01:36]}  Ra6 {[%clk 0:00:18]} 34. Bh5 {[%clk 0:01:35]}  Nh6 {[%clk 0:00:15]} 35. h3 {[%clk 0:01:32]}  Ng8 {[%clk 0:00:14]} 36. Kc2 {[%clk 0:01:30]}  Kg7 {[%clk 0:00:14]} 37. Be8 {[%clk 0:01:25]}  Nf6 {[%clk 0:00:09]} 38. Bxb5 {[%clk 0:01:23]}  Nxd5 {[%clk 0:00:08]} 39. Rg3+ {[%clk 0:01:23]}  Kf6 {[%clk 0:00:07]} 40. Bxa6 {[%clk 0:01:24]}  Nxf4 {[%clk 0:00:07]} 41. Bxc4 {[%clk 0:01:23]}  d5 {[%clk 0:00:04]} 42. Bd3 {[%clk 0:01:22]} 1-0


[Site "https://www.chess.com"]

[Event "Titled Tuesday Blitz May 9 Late 2023"]
[White "Stachanczyk, Jacek"]
[Black "Matinian, Nikita"]
[WhiteFideId "1116657"]
[BlackFideId "24129100"]
[WhiteElo "2084"]
[BlackElo "2422"]
[Result "0-1"]
[Round "01"]
[TimeControl "180+2"]
[Date "2023.05.09"]
[WhiteClock "0:00:10"]
[BlackClock "0:00:04"]

1. e4 {[%clk 0:02:47]}  c5 {[%clk 0:02:59]} 2. Nf3 {[%clk 0:02:45]}  e6 {[%clk 0:02:59]} 3. d4 {[%clk 0:02:44]}  cxd4 {[%clk 0:03:00]} 4. Nxd4 {[%clk 0:02:45]}  Nc6 {[%clk 0:03:01]} 5. Nc3 {[%clk 0:02:45]}  Nf6 {[%clk 0:03:00]} 6. Nxc6 {[%clk 0:02:43]}  bxc6 {[%clk 0:03:00]} 7. e5 {[%clk 0:02:43]}  Nd5 {[%clk 0:03:00]} 8. Ne4 {[%clk 0:02:43]}  Bb7 {[%clk 0:03:00]} 9. a3 {[%clk 0:02:29]}  c5 {[%clk 0:02:50]} 10. c4 {[%clk 0:02:22]}  Nf4 {[%clk 0:02:43]} 11. Nd6+ {[%clk 0:02:18]}  Bxd6 {[%clk 0:02:42]} 12. Qxd6 {[%clk 0:02:18]}  Ng6 {[%clk 0:01:34]} 13. Qxc5 {[%clk 0:01:50]}  Qh4 {[%clk 0:01:34]} 14. Be3 {[%clk 0:01:38]}  Qh5 {[%clk 0:01:21]} 15. Be2 {[%clk 0:01:27]}  Qxe5 {[%clk 0:01:19]} 16. Qxe5 {[%clk 0:01:28]}  Nxe5 {[%clk 0:01:20]} 17. O-O {[%clk 0:01:27]}  d6 {[%clk 0:01:08]} 18. Rfd1 {[%clk 0:01:24]}  Ke7 {[%clk 0:01:08]} 19. c5 {[%clk 0:01:16]}  d5 {[%clk 0:01:08]} 20. b4 {[%clk 0:01:14]}  a6 {[%clk 0:01:08]} 21. Bd4 {[%clk 0:01:08]}  f6 {[%clk 0:01:07]} 22. f4 {[%clk 0:01:07]}  Nc4 {[%clk 0:01:02]} 23. Bxc4 {[%clk 0:01:06]}  dxc4 {[%clk 0:01:02]} 24. Rac1 {[%clk 0:01:05]}  Bd5 {[%clk 0:01:00]} 25. Kf2 {[%clk 0:01:04]}  Rhb8 {[%clk 0:01:00]} 26. g3 {[%clk 0:01:04]}  a5 {[%clk 0:01:01]} 27. Bc3 {[%clk 0:01:04]}  axb4 {[%clk 0:01:01]} 28. Bxb4 {[%clk 0:01:04]}  h5 {[%clk 0:00:55]} 29. Rd2 {[%clk 0:01:02]}  f5 {[%clk 0:00:48]} 30. Re1 {[%clk 0:01:01]}  Kd7 {[%clk 0:00:48]} 31. Rc1 {[%clk 0:00:58]}  Kc6 {[%clk 0:00:47]} 32. Rb2 {[%clk 0:00:56]}  g6 {[%clk 0:00:40]} 33. Ke3 {[%clk 0:00:53]}  Ra7 {[%clk 0:00:40]} 34. Kd4 {[%clk 0:00:50]}  h4 {[%clk 0:00:39]} 35. Ke5 {[%clk 0:00:49]}  hxg3 {[%clk 0:00:38]} 36. hxg3 {[%clk 0:00:49]}  Rh7 {[%clk 0:00:39]} 37. Kf6 {[%clk 0:00:49]}  Rh3 {[%clk 0:00:39]} 38. Rg1 {[%clk 0:00:47]}  Rf8+ {[%clk 0:00:30]} 39. Ke5 {[%clk 0:00:44]}  Rb8 {[%clk 0:00:23]} 40. Rd2 {[%clk 0:00:43]}  Rh7 {[%clk 0:00:13]} 41. g4 {[%clk 0:00:42]}  Rf7 {[%clk 0:00:12]} 42. g5 {[%clk 0:00:41]}  Rh7 {[%clk 0:00:13]} 43. Re1 {[%clk 0:00:41]}  Rh4 {[%clk 0:00:12]} 44. Ree2 {[%clk 0:00:40]}  Rh3 {[%clk 0:00:09]} 45. Kf6 {[%clk 0:00:40]}  Rf3 {[%clk 0:00:07]} 46. Rf2 {[%clk 0:00:39]}  Rd3 {[%clk 0:00:04]} 47. Kxg6 {[%clk 0:00:37]}  Rh3 {[%clk 0:00:02]} 48. Kf6 {[%clk 0:00:36]}  Rhh8 {[%clk 0:00:01]} 49. Rh2 {[%clk 0:00:34]}  Rhf8+ {[%clk 0:00:01]} 50. Ke5 {[%clk 0:00:34]}  Rfd8 {[%clk 0:00:01]} 51. Rh7 {[%clk 0:00:33]}  Kb5 {[%clk 0:00:02]} 52. Rc7 {[%clk 0:00:32]}  Ka4 {[%clk 0:00:02]} 53. g6 {[%clk 0:00:31]}  Kb3 {[%clk 0:00:02]} 54. Rd1 {[%clk 0:00:30]}  Be4 {[%clk 0:00:02]} 55. Rxd8 {[%clk 0:00:29]}  Rxd8 {[%clk 0:00:03]} 56. g7 {[%clk 0:00:27]}  c3 {[%clk 0:00:03]} 57. Rf7 {[%clk 0:00:26]}  c2 {[%clk 0:00:03]} 58. Bd2 {[%clk 0:00:25]}  Rd5+ {[%clk 0:00:03]} 59. Kf6 {[%clk 0:00:23]}  Rxd2 {[%clk 0:00:03]} 60. g8=Q {[%clk 0:00:22]}  c1=Q {[%clk 0:00:04]} 61. Qb8+ {[%clk 0:00:21]}  Ka2 {[%clk 0:00:04]} 62. Rb7 {[%clk 0:00:20]}  Qc3+ {[%clk 0:00:04]} 63. Kf7 {[%clk 0:00:20]}  Bd5 {[%clk 0:00:04]} 64. Ke7 {[%clk 0:00:17]}  Bxb7 {[%clk 0:00:03]} 65. Qxb7 {[%clk 0:00:17]}  Qxc5+ {[%clk 0:00:03]} 66. Kf7 {[%clk 0:00:16]}  Qd5 {[%clk 0:00:02]} 67. Qxd5+ {[%clk 0:00:15]}  exd5 {[%clk 0:00:03]} 68. a4 {[%clk 0:00:10]}  d4 {[%clk 0:00:04]} 0-1


[Site "https://www.chess.com"]